Workbook

Sheet Доходы
H1: RESPPERSONS&=
A2: ОТЧЕТ ОБ ИСПОЛНЕНИИ БЮДЖЕТА | F2: КОДЫ
E3: Форма по ОКУД | F3: 0503117 | H3: C:\117M1.txt
A4: на 01 мая 2014 года | E4: Дата | F4: 01.05.2014 | H4: 01.05.2014
E5: по ОКПО | F5: 04032907 | H5: 117
A6: Наименование финансового органа: | B6: Администрация МО "Город Пикалево" | E6: Глава по БК | F6: 001 | H6: 3
A7: Наименование публично-правового образования: | B7: Бюджет МО "Город Пикалево" Бокситогорского муниципального района Ленинградской области | E7: по ОКТМО | F7: 41603102
A8: Периодичность: месячная
A9: Единица измерения: руб. | E9: по ОКЕИ | F9: 383 | H9: 1
A10: 1. Доходы бюджета
A11: Наименование показателя | B11: Код строки | C11: Код дохода по бюджетной классификации | D11: Утвержденные бюджетные назначения | E11: Исполнено | F11: Неисполненные назначения
A18: 1 | B18: 2 | C18: 3 | D18: 4 | E18: 5 | F18: 6
A19: Доходы бюджета - всего | B19: 010 | C19: X | D19: 121730101.1 | E19: -273427880.6 | F19: =IF(OR(D19="-",E19=D19),"-",D19-IF(E19="-",0,E19)) -> 395157981.6
A20: в том числе:
A21: НАЛОГОВЫЕ И НЕНАЛОГОВЫЕ ДОХОДЫ | C21: 000 10000000000000 000 | D21: 100149832.3 | E21: 27158590.73 | F21: =IF(OR(D21="-",E21=D21),"-",D21-IF(E21="-",0,E21)) -> 72991241.53
A22: НАЛОГИ НА ПРИБЫЛЬ, ДОХОДЫ | C22: 000 10100000000000 000 | D22: 24358200 | E22: 7853745.44 | F22: 16504454.56
A23: Налог на доходы физических лиц | C23: 000 10102000010000 110 | D23: 24358200 | E23: 7853745.44 | F23: 16504454.56
A24: Налог на доходы физических лиц с доходов, источником которых является налоговый агент, за исключением доходов, в отношении которых исчисление и уплата налога осуществляются в соответствии со статьями 227, 227.1 и 228 Налогового кодекса Российской Федерации | C24: 000 10102010010000 110 | D24: 24322927.48 | E24: 7818472.92 | F24: 16504454.56
A25: Налог на доходы физических лиц с доходов, источником которых является налоговый агент, за исключением доходов, в отношении которых исчисление и уплата налога осуществляются в соответствии со статьями 227, 227.1 и 228 Налогового кодекса Российской Федерации (сумма платежа (перерасчеты, недоимка и задолженность по соответствующему платежу, в том числе по отмененному)) | C25: 000 10102010011000 110 | D25: 24322927.48 | E25: 7791451.22 | F25: 16531476.26
A26: Налог на доходы физических лиц с доходов, источником которых является налоговый агент, за исключением доходов, в отношении которых исчисление и уплата налога осуществляются в соответствии со статьями 227, 227.1 и 228 Налогового кодекса Российской Федерации (пени и проценты по соответствующему платежу) | C26: 000 10102010012000 110 | D26: - | E26: 5886 | F26: -
A27: Налог на доходы физических лиц с доходов, источником которых является налоговый агент, за исключением доходов, в отношении которых исчисление и уплата налога осуществляются в соответствии со статьями 227, 227.1 и 228 Налогового кодекса Российской Федерации (суммы денежных взысканий (штрафов) по соответствующему платежу согласно законодательству Российской Федерации) | C27: 000 10102010013000 110 | D27: - | E27: 21135.7 | F27: -
A28: Налог на доходы физических лиц с доходов, полученных от осуществления деятельности физическими лицами, зарегистрированными в качестве индивидуальных предпринимателей, нотариусов, занимающихся частной практикой, адвокатов, учредивших адвокатские кабинеты и других лиц, занимающихся частной практикой в соответствии со статьей 227 Налогового кодекса Российской Федерации | C28: 000 10102020010000 110 | D28: 23582.09 | E28: 23582.09 | F28: -
A29: Налог на доходы физических лиц с доходов, полученных от осуществления деятельности физическими лицами, зарегистрированными в качестве индивидуальных предпринимателей, нотариусов, занимающихся частной практикой, адвокатов, учредивших адвокатские кабинеты и других лиц, занимающихся частной практикой в соответствии со статьей 227 Налогового кодекса Российской Федерации (сумма платежа (перерасчеты, недоимка и задолженность по соответствующему платежу, в том числе по отмененному)) | C29: 000 10102020011000 110 | D29: 23582.09 | E29: 23302.1 | F29: 279.99
A30: Налог на доходы физических лиц с доходов, полученных от осуществления деятельности физическими лицами, зарегистрированными в качестве индивидуальных предпринимателей, нотариусов, занимающихся частной практикой, адвокатов, учредивших адвокатские кабинеты и других лиц, занимающихся частной практикой в соответствии со статьей 227 Налогового кодекса Российской Федерации (суммы денежных взысканий (штрафов) по соответствующему платежу согласно законодательству Российской Федерации) | C30: 000 10102020013000 110 | D30: - | E30: 279.99 | F30: -
A31: Налог на доходы физических лиц с доходов, полученных физическими лицами в соответствии со статьей 228 Налогового Кодекса Российской Федерации | C31: 000 10102030010000 110 | D31: 11690.43 | E31: 11690.43 | F31: -
A32: Налог на доходы физических лиц с доходов, полученных физическими лицами в соответствии со статьей 228 Налогового Кодекса Российской Федерации (сумма платежа (перерасчеты, недоимка и задолженность по соответствующему платежу, в том числе по отмененному)) | C32: 000 10102030011000 110 | D32: 11690.43 | E32: 11026.9 | F32: 663.53
A33: Налог на доходы физических лиц с доходов, полученных физическими лицами в соответствии со статьей 228 Налогового Кодекса Российской Федерации (пени и проценты по соответствующему платежу) | C33: 000 10102030012000 110 | D33: - | E33: 78.19 | F33: -
A34: Налог на доходы физических лиц с доходов, полученных физическими лицами в соответствии со статьей 228 Налогового Кодекса Российской Федерации (суммы денежных взысканий (штрафов) по соответствующему платежу согласно законодательству Российской Федерации) | C34: 000 10102030013000 110 | D34: - | E34: 585.34 | F34: -
A35: НАЛОГИ НА ТОВАРЫ (РАБОТЫ, УСЛУГИ), РЕАЛИЗУЕМЫЕ НА ТЕРРИТОРИИ РОССИЙСКОЙ ФЕДЕРАЦИИ | C35: 000 10300000000000 000 | D35: 377100 | E35: 97880.7 | F35: 279219.3
A36: Акцизы по подакцизным товарам (продукции), производимым на территории Российской Федерации | C36: 000 10302000010000 110 | D36: 377100 | E36: 97880.7 | F36: 279219.3
A37: Доходы от уплаты акцизов на дизельное топливо, зачисляемые в консолидированные бюджеты субъектов Российской Федерации | C37: 000 10302230010000 110 | D37: 150000 | E37: 38216.5 | F37: 111783.5
A38: Доходы от уплаты акцизов на моторные масла для дизельных и (или) карбюраторных (инжекторных) двигателей, зачисляемые в консолидированные бюджеты субъектов Российской Федерации | C38: 000 10302240010000 110 | D38: 5000 | E38: 687.42 | F38: 4312.58
A39: Доходы от уплаты акцизов на автомобильный бензин, производимый на территории Российской Федерации, зачисляемые в консолидированные бюджеты субъектов Российской Федерации | C39: 000 10302250010000 110 | D39: 217100 | E39: 58975.16 | F39: 158124.84
A40: Доходы от уплаты акцизов на прямогонный бензин, производимый на территории Российской Федерации, зачисляемые в консолидированные бюджеты субъектов Российской Федерации | C40: 000 10302260010000 110 | D40: 5000 | E40: 1.62 | F40: 4998.38
A41: НАЛОГИ НА СОВОКУПНЫЙ ДОХОД | C41: 000 10500000000000 000 | D41: 300 | E41: 2169.5 | F41: -1869.5
A42: Единый сельскохозяйственный налог | C42: 000 10503000010000 110 | D42: 300 | E42: 2169.5 | F42: -1869.5
A43: Единый сельскохозяйственный налог | C43: 000 10503010010000 110 | D43: 300 | E43: 2169.5 | F43: -1869.5
A44: Единый сельскохозяйственный налог (сумма платежа (перерасчеты, недоимка и задолженность по соответствующему платежу, в том числе по отмененному)) | C44: 000 10503010011000 110 | D44: 300 | E44: 2159.5 | F44: -1859.5
A45: Единый сельскохозяйственный налог (пени и проценты по соответствующему платежу) | C45: 000 10503010012000 110 | D45: - | E45: 10 | F45: -
A46: НАЛОГИ НА ИМУЩЕСТВО | C46: 000 10600000000000 000 | D46: 41124100 | E46: 9233048.51 | F46: 31891051.49
A47: Налог на имущество физических лиц | C47: 000 10601000000000 110 | D47: 891100 | E47: 184477.15 | F47: 706622.85
A48: Налог на имущество физических лиц, взимаемый по ставкам, применяемым к объектам налогообложения, расположенным в границах поселений | C48: 000 10601030100000 110 | D48: 891100 | E48: 184477.15 | F48: 706622.85
A49: Налог на имущество физических лиц, взимаемый по ставкам, применяемым к объектам налогообложения, расположенным в границах поселений (сумма платежа (перерасчеты, недоимка и задолженность по соответствующему платежу, в том числе по отмененному)) | C49: 000 10601030101000 110 | D49: 891100 | E49: 179505.87 | F49: 711594.13
A50: Налог на имущество физических лиц, взимаемый по ставкам, применяемым к объектам налогообложения, расположенным в границах поселений (пени и проценты по соответствующему платежу) | C50: 000 10601030102000 110 | D50: - | E50: 4971.28 | F50: -
A51: Транспортный налог | C51: 000 10604000020000 110 | D51: 11233000 | E51: 1849183.89 | F51: 9383816.11
A52: Транспортный налог с организаций | C52: 000 10604011020000 110 | D52: 2433000 | E52: 1222321.04 | F52: 1210678.96
A53: Транспортный налог с организаций (сумма платежа (перерасчеты, недоимка и задолженность по соответствующему платежу, в том числе по отмененному)) | C53: 000 10604011021000 110 | D53: 2433000 | E53: 1210614.21 | F53: =IF(OR(D53="-",E53=D53),"-",D53-IF(E53="-",0,E53)) -> 1222385.79
A54: Транспортный налог с организаций (пени и проценты по соответствующему платежу) | C54: 000 10604011022000 110 | D54: - | E54: 11706.83 | F54: -
A55: Транспортный налог с физических лиц | C55: 000 10604012020000 110 | D55: 8800000 | E55: 626862.85 | F55: 8173137.15
A56: Транспортный налог с физических лиц (сумма платежа (перерасчеты, недоимка и задолженность по соответствующему платежу, в том числе по отмененному)) | C56: 000 10604012021000 110 | D56: 8800000 | E56: 578958.23 | F56: 8221041.77
A57: Транспортный налог с физических лиц (пени и проценты по соответствующему платежу) | C57: 000 10604012022000 110 | D57: - | E57: 47904.62 | F57: -
A58: Земельный налог | C58: 000 10606000000000 110 | D58: 29000000 | E58: 7199387.47 | F58: 21800612.53
A59: Земельный налог, взимаемый по ставкам, установленным в соответствии с подпунктом 1 пункта 1 статьи 394 Налогового кодекса Российской Федерации | C59: 000 10606010000000 110 | D59: 600000 | E59: 83412.24 | F59: 516587.76
A60: Земельный налог, взимаемый по ставкам, установленным в соответствии с подпунктом 1 пункта 1 статьи 394 Налогового кодекса Российской Федерации и применяемым к объектам налогообложения, расположенным в границах поселений | C60: 000 10606013100000 110 | D60: 600000 | E60: 83412.24 | F60: 516587.76
A61: Земельный налог, взимаемый по ставкам, установленным в соответствии с подпунктом 2 пункта 1 статьи 394 Налогового кодекса Российской Федерации | C61: 000 10606020000000 110 | D61: 28400000 | E61: 7115975.23 | F61: 21284024.77
A62: Земельный налог, взимаемый по ставкам, установленным в соответствии с подпунктом 2 пункта 1 статьи 394 Налогового кодекса Российской Федерации и применяемым к объектам налогообложения, расположенным в границах поселений | C62: 000 10606023100000 110 | D62: 28400000 | E62: 7115975.23 | F62: 21284024.77
A63: ГОСУДАРСТВЕННАЯ ПОШЛИНА | C63: 000 10800000000000 000 | D63: 48400 | E63: 15800 | F63: 32600
A64: Государственная пошлина за государственную регистрацию, а также за совершение прочих юридически значимых действий | C64: 000 10807000010000 110 | D64: 48400 | E64: 15800 | F64: 32600
A65: Государственная пошлина за выдачу специального разрешения на движение по автомобильным дорогам транспортных средств, осуществляющих перевозки опасных, тяжеловесных и (или) крупногабаритных грузов | C65: 000 10807170010000 110 | D65: 48400 | E65: 15800 | F65: 32600
A66: Государственная пошлина за выдачу органом местного самоуправления поселения специального разрешения на движение по автомобильным дорогам транспортных средств, осуществляющих перевозки опасных, тяжеловесных и (или) крупногабаритных грузов, зачисляемая в бюджеты поселений | C66: 000 10807175010000 110 | D66: 48400 | E66: 15800 | F66: 32600
A67: ДОХОДЫ ОТ ИСПОЛЬЗОВАНИЯ ИМУЩЕСТВА, НАХОДЯЩЕГОСЯ В ГОСУДАРСТВЕННОЙ И МУНИЦИПАЛЬНОЙ СОБСТВЕННОСТИ | C67: 000 11100000000000 000 | D67: 31235794.26 | E67: 7618606.19 | F67: 23617188.07
A68: Доходы, получаемые в виде арендной либо иной платы за передачу в возмездное пользование государственного и муниципального имущества (за исключением имущества бюджетных и автономных учреждений, а также имущества государственных и муниципальных унитарных предприятий, в том числе казенных) | C68: 000 11105000000000 120 | D68: 29634844.26 | E68: 7230171.69 | F68: 22404672.57
A69: Доходы, получаемые в виде арендной платы за земельные участки, государственная собственность на которые не разграничена, а также средства от продажи права на заключение договоров аренды указанных земельных участков | C69: 000 11105010000000 120 | D69: 15970000 | E69: 2961454.65 | F69: 13008545.35
A70: Доходы, получаемые в виде арендной платы за земельные участки, государственная собственность на которые не разграничена и которые расположены в границах поселений, а также средства от продажи права на заключение договоров аренды указанных земельных участков | C70: 000 11105013100000 120 | D70: 15970000 | E70: 2961454.65 | F70: 13008545.35
A71: Доходы, получаемые в виде арендной платы за земли после разграничения государственной собственности на землю, а также средства от продажи права на заключение договоров аренды указанных земельных участков (за исключением земельных участков бюджетных и автономных учреждений) | C71: 000 11105020000000 120 | D71: 1100000 | E71: 497313.98 | F71: 602686.02
A72: Доходы, получаемые в виде арендной платы, а также средства от продажи права на заключение договоров аренды за земли, находящиеся в собственности поселений (за исключением земельных участков муниципальных бюджетных и автономных учреждений) | C72: 000 11105025100000 120 | D72: 1100000 | E72: 497313.98 | F72: 602686.02
A73: Доходы от сдачи в аренду имущества, находящегося в оперативном управлении органов государственной власти, органов местного самоуправления, государственных внебюджетных фондов и созданных ими учреждений (за исключением имущества бюджетных и автономных учреждений) | C73: 000 11105030000000 120 | D73: 64844.26 | E73: 15457.7 | F73: 49386.56
A74: Доходы от сдачи в аренду имущества, находящегося в оперативном управлении органов управления поселений и созданных ими учреждений (за исключением имущества муниципальных бюджетных и автономных учреждений) | C74: 000 11105035100000 120 | D74: 64844.26 | E74: 15457.7 | F74: 49386.56
A75: Доходы от сдачи в аренду имущества, составляющего государственную (муниципальную) казну (за исключением земельных участков) | C75: 000 11105070000000 120 | D75: 12500000 | E75: 3755945.36 | F75: 8744054.64
A76: Доходы от сдачи в аренду имущества, составляющего казну поселений (за исключением земельных участков) | C76: 000 11105075100000 120 | D76: 12500000 | E76: 3755945.36 | F76: 8744054.64
A77: Платежи от государственных и муниципальных унитарных предприятий | C77: 000 11107000000000 120 | D77: 950 | E77: - | F77: 950
A78: Доходы от перечисления части прибыли государственных и муниципальных унитарных предприятий, остающейся после уплаты налогов и обязательных платежей | C78: 000 11107010000000 120 | D78: 950 | E78: - | F78: 950
A79: Доходы от перечисления части прибыли, остающейся после уплаты налогов и иных обязательных платежей муниципальных унитарных предприятий, созданных поселениями | C79: 000 11107015100000 120 | D79: 950 | E79: - | F79: 950
A80: Прочие доходы от использования имущества и прав, находящихся в государственной и муниципальной собственности (за исключением имущества бюджетных и автономных учреждений, а также имущества государственных и муниципальных унитарных предприятий, в том числе казенных) | C80: 000 11109000000000 120 | D80: 1600000 | E80: 388434.5 | F80: 1211565.5
A81: Прочие поступления от использования имущества, находящегося в государственной и муниципальной собственности (за исключением имущества бюджетных и автономных учреждений, а также имущества государственных и муниципальных унитарных предприятий, в том числе казенных) | C81: 000 11109040000000 120 | D81: 1600000 | E81: 388434.5 | F81: 1211565.5
A82: Прочие поступления от использования имущества, находящегося в собственности поселений (за исключением имущества муниципальных бюджетных и автономных учреждений, а также имущества муниципальных унитарных предприятий, в том числе казенных) | C82: 000 11109045100000 120 | D82: 1600000 | E82: 388434.5 | F82: 1211565.5
A83: ДОХОДЫ ОТ ОКАЗАНИЯ ПЛАТНЫХ УСЛУГ (РАБОТ) И КОМПЕНСАЦИИ ЗАТРАТ ГОСУДАРСТВА | C83: 000 11300000000000 000 | D83: 55938 | E83: 18758.99 | F83: 37179.01
A84: Доходы от оказания платных услуг (работ) | C84: 000 11301000000000 130 | D84: 55938 | E84: 18758.99 | F84: 37179.01
A85: Прочие доходы от оказания платных услуг (работ) | C85: 000 11301990000000 130 | D85: 55938 | E85: 18758.99 | F85: =IF(OR(D85="-",E85=D85),"-",D85-IF(E85="-",0,E85)) -> 37179.01
A86: Прочие доходы от оказания платных услуг (работ) получателями средств бюджетов поселений | C86: 000 11301995100000 130 | D86: 55938 | E86: 18758.99 | F86: 37179.01
A87: ДОХОДЫ ОТ ПРОДАЖИ МАТЕРИАЛЬНЫХ И НЕМАТЕРИАЛЬНЫХ АКТИВОВ | C87: 000 11400000000000 000 | D87: 2700000 | E87: 2199600.33 | F87: 500399.67
A88: Доходы от реализации имущества, находящегося в государственной и муниципальной собственности (за исключением имущества бюджетных и автономных учреждений, а также имущества государственных и муниципальных унитарных предприятий, в том числе казенных) | C88: 000 11402000000000 000 | D88: 2500000 | E88: 1707690.99 | F88: 792309.01
A89: Доходы от реализации имущества, находящегося в собственности поселений (за исключением имущества муниципальных бюджетных и автономных учреждений, а также имущества муниципальных унитарных предприятий, в том числе казенных), в части реализации основных средств по указанному имуществу | C89: 000 11402050100000 410 | D89: 2500000 | E89: 1707690.99 | F89: 792309.01
A90: Доходы от реализации иного имущества, находящегося в собственности поселений (за исключением имущества муниципальных бюджетных и автономных учреждений, а также имущества муниципальных унитарных предприятий, в том числе казенных), в части реализации основных средств по указанному имуществу | C90: 000 11402053100000 410 | D90: 2500000 | E90: 1707690.99 | F90: 792309.01
A91: Доходы от продажи земельных участков, находящихся в государственной и муниципальной собственности (за исключением земельных участков бюджетных и автономных учреждений) | C91: 000 11406000000000 430 | D91: 200000 | E91: 491909.34 | F91: -291909.34
A92: Доходы от продажи земельных участков, государственная собственность на которые не разграничена | C92: 000 11406010000000 430 | D92: 200000 | E92: 15809.34 | F92: 184190.66
A93: Доходы от продажи земельных участков, государственная собственность на которые не разграничена и которые расположены в границах поселений | C93: 000 11406013100000 430 | D93: 200000 | E93: 15809.34 | F93: 184190.66
A94: Доходы от продажи земельных участков, государственная собственность на которые разграничена (за исключением земельных участков бюджетных и автономных учреждений) | C94: 000 11406020000000 430 | D94: - | E94: 476100 | F94: -
A95: Доходы от продажи земельных участков, находящихся в собственности поселений (за исключением земельных участков муниципальных бюджетных и автономных учреждений) | C95: 000 11406025100000 430 | D95: - | E95: 476100 | F95: -
A96: ШТРАФЫ, САНКЦИИ, ВОЗМЕЩЕНИЕ УЩЕРБА | C96: 000 11600000000000 000 | D96: 250000 | E96: 90553.65 | F96: 159446.35
A97: Поступления сумм в возмещение вреда, причиняемого автомобильным дорогам транспортными средствами, осуществляющими перевозки тяжеловесных и (или) крупногабаритных грузов | C97: 000 11637000000000 140 | D97: 50000 | E97: 35163.24 | F97: 14836.76
A98: Поступления сумм в возмещение вреда, причиняемого автомобильным дорогам местного значения транспортными средствами, осуществляющими перевозки тяжеловесных и (или) крупногабаритных грузов, зачисляемые в бюджеты поселений | C98: 000 11637040100000 140 | D98: 50000 | E98: 35163.24 | F98: 14836.76
A99: Прочие поступления от денежных взысканий (штрафов) и иных сумм в возмещение ущерба | C99: 000 11690000000000 140 | D99: 200000 | E99: 55390.41 | F99: 144609.59
A100: Прочие поступления от денежных взысканий (штрафов) и иных сумм в возмещение ущерба, зачисляемые в бюджеты поселений | C100: 000 11690050100000 140 | D100: 200000 | E100: 55390.41 | F100: 144609.59
A101: ПРОЧИЕ НЕНАЛОГОВЫЕ ДОХОДЫ | C101: 000 11700000000000 000 | D101: - | E101: 28427.42 | F101: -
A102: Прочие неналоговые доходы | C102: 000 11705000000000 180 | D102: - | E102: 28427.42 | F102: -
A103: Прочие неналоговые доходы бюджетов поселений | C103: 000 11705050100000 180 | D103: - | E103: 28427.42 | F103: -
A104: БЕЗВОЗМЕЗДНЫЕ ПОСТУПЛЕНИЯ | C104: 000 20000000000000 000 | D104: 21580268.82 | E104: -300586471.3 | F104: 322166740.1
A105: БЕЗВОЗМЕЗДНЫЕ ПОСТУПЛЕНИЯ ОТ ДРУГИХ БЮДЖЕТОВ БЮДЖЕТНОЙ СИСТЕМЫ РОССИЙСКОЙ ФЕДЕРАЦИИ | C105: 000 20200000000000 000 | D105: 21580268.82 | E105: 12343416.82 | F105: 9236852
A106: Дотации бюджетам субъектов Российской Федерации и муниципальных образований | C106: 000 20201000000000 151 | D106: 5146100 | E106: 2830355 | F106: 2315745
A107: Дотации на выравнивание бюджетной обеспеченности | C107: 000 20201001000000 151 | D107: 5146100 | E107: 2830355 | F107: 2315745
A108: Дотации бюджетам поселений на выравнивание бюджетной обеспеченности | C108: 000 20201001100000 151 | D108: 5146100 | E108: 2830355 | F108: 2315745
A109: Субсидии бюджетам бюджетной системы Российской Федерации (межбюджетные субсидии) | C109: 000 20202000000000 151 | D109: 12854745.82 | E109: 7854745.82 | F109: 5000000
A110: Субсидии бюджетам на софинансирование капитальных вложений в объекты государственной (муниципальной) собственности | C110: 000 20202077000000 151 | D110: 5000000 | E110: - | F110: 5000000
A111: Субсидии бюджетам поселений на софинансирование капитальных вложений в объекты муниципальной собственности | C111: 000 20202077100000 151 | D111: 5000000 | E111: - | F111: 5000000
A112: Субсидии бюджетам муниципальных образований на обеспечение мероприятий по капитальному ремонту многоквартирных домов, переселению граждан из аварийного жилищного фонда и модернизации систем коммунальной инфраструктуры за счет средств, поступивших от государственной корпорации - Фонда содействия реформированию жилищно-коммунального хозяйства | C112: 000 20202088000000 151 | D112: 7854745.82 | E112: 7854745.82 | F112: -
A113: Субсидии бюджетам поселений на обеспечение мероприятий по капитальному ремонту многоквартирных домов, переселению граждан из аварийного жилищного фонда и модернизации систем коммунальной инфраструктуры за счет средств, поступивших от государственной корпорации - Фонда содействия реформированию жилищно-коммунального хозяйства | C113: 000 20202088100000 151 | D113: 7854745.82 | E113: 7854745.82 | F113: -
A114: Субвенции бюджетам субъектов Российской Федерации и муниципальных образований | C114: 000 20203000000000 151 | D114: 2248723 | E114: 1658316 | F114: 590407
A115: Субвенции бюджетам на осуществление первичного воинского учета на территориях, где отсутствуют военные комиссариаты | C115: 000 20203015000000 151 | D115: 1127132 | E115: 1097520 | F115: 29612
A116: Субвенции бюджетам поселений на осуществление первичного воинского учета на территориях, где отсутствуют военные комиссариаты | C116: 000 20203015100000 151 | D116: 1127132 | E116: 1097520 | F116: 29612
A117: Субвенции местным бюджетам на выполнение передаваемых полномочий субъектов Российской Федерации | C117: 000 20203024000000 151 | D117: 1121591 | E117: 560796 | F117: =IF(OR(D117="-",E117=D117),"-",D117-IF(E117="-",0,E117)) -> 560795
A118: Субвенции бюджетам поселений на выполнение передаваемых полномочий субъектов Российской Федерации | C118: 000 20203024100000 151 | D118: 1121591 | E118: 560796 | F118: 560795
A119: Иные межбюджетные трансферты | C119: 000 20204000000000 151 | D119: 1330700 | E119: - | F119: 1330700
A120: Межбюджетные трансферты, передаваемые бюджетам муниципальных образований на осуществление части полномочий по решению вопросов местного значения в соответствии с заключенными соглашениями | C120: 000 20204014000000 151 | D120: 1330700 | E120: - | F120: 1330700
A121: Межбюджетные трансферты, передаваемые бюджетам поселений из бюджетов муниципальных районов на осуществление части полномочий по решению вопросов местного значения в соответствии с заключенными соглашениями | C121: 000 20204014100000 151 | D121: 1330700 | E121: - | F121: 1330700
A122: ДОХОДЫ БЮДЖЕТОВ БЮДЖЕТНОЙ СИСТЕМЫ РОССИЙСКОЙ ФЕДЕРАЦИИ ОТ ВОЗВРАТА БЮДЖЕТАМИ БЮДЖЕТНОЙ СИСТЕМЫ РОССИЙСКОЙ ФЕДЕРАЦИИ И ОРГАНИЗАЦИЯМИ ОСТАТКОВ СУБСИДИЙ, СУБВЕНЦИЙ И ИНЫХ МЕЖБЮДЖЕТНЫХ ТРАНСФЕРТОВ, ИМЕЮЩИХ ЦЕЛЕВОЕ НАЗНАЧЕНИЕ, ПРОШЛЫХ ЛЕТ | C122: 000 21800000000000 000 | D122: - | E122: 554164 | F122: -
A123: Доходы бюджетов бюджетной системы Российской Федерации от возврата организациями остатков субсидий прошлых лет | C123: 000 21800000000000 180 | D123: - | E123: 554164 | F123: -
A124: Доходы бюджетов поселений от возврата организациями остатков субсидий прошлых лет | C124: 000 21805000100000 180 | D124: - | E124: 554164 | F124: -
A125: Доходы бюджетов поселений от возврата иными организациями остатков субсидий прошлых лет | C125: 000 21805030100000 180 | D125: - | E125: 554164 | F125: -
A126: ВОЗВРАТ ОСТАТКОВ СУБСИДИЙ, СУБВЕНЦИЙ И ИНЫХ МЕЖБЮДЖЕТНЫХ ТРАНСФЕРТОВ, ИМЕЮЩИХ ЦЕЛЕВОЕ НАЗНАЧЕНИЕ, ПРОШЛЫХ ЛЕТ | C126: 000 21900000000000 000 | D126: - | E126: -313484052.1 | F126: -
A127: Возврат остатков субсидий, субвенций и иных межбюджетных трансфертов, имеющих целевое назначение, прошлых лет из бюджетов поселений | C127: 000 21905000100000 151 | D127: - | E127: -313484052.1 | F127: -

Sheet Расходы
A2: 2. Расходы бюджета | F2: Форма 0503117 с.2
A4: Наименование показателя | B4: Код строки | C4: Код расхода по бюджетной классификации | D4: Утвержденные бюджетные назначения | E4: Исполнено | F4: Неисполненные назначения
A12: 1 | B12: 2 | C12: 3 | D12: 4 | E12: 5 | F12: 6
A13: Расходы бюджета - всего | B13: 200 | C13: *** 96000000000000 000 | D13: 258842446.1 | E13: 82755827.6 | F13: =IF(OR(D13="-",E13=D13),"-",D13-IF(E13="-",0,E13)) -> 176086618.5
A14: в том числе:
A15: ОБЩЕГОСУДАРСТВЕННЫЕ ВОПРОСЫ | C15: 000 0100 0000000 000 000 | D15: 30116635.02 | E15: 7114310.03 | F15: =IF(OR(D15="-",E15=D15),"-",D15-IF(E15="-",0,E15)) -> 23002324.99
A16: Функционирование законодательных (представительных) органов государственной власти и представительных органов муниципальных образований | C16: 000 0103 0000000 000 000 | D16: 469741 | E16: 222235 | F16: 247506
A17: Обеспечение деятельности Совета депутатов | C17: 000 0103 Г110000 000 000 | D17: 469741 | E17: 222235 | F17: 247506
A18: Расходы на обеспечение функций органов местного самоуправления в рамках обеспечения деятельности Совета депутатов | C18: 000 0103 Г11Г015 000 000 | D18: 28471 | E18: 1600 | F18: 26871
A19: Иные выплаты персоналу государственных (муниципальных) органов, за исключением фонда оплаты труда | C19: 000 0103 Г11Г015 122 000 | D19: 26111 | E19: - | F19: 26111
A20: Расходы | C20: 000 0103 Г11Г015 122 200 | D20: 26111 | E20: - | F20: 26111
A21: Оплата труда и начисления на выплаты по оплате труда | C21: 000 0103 Г11Г015 122 210 | D21: 20048 | E21: - | F21: 20048
A22: Прочие выплаты | C22: 000 0103 Г11Г015 122 212 | D22: 20048 | E22: - | F22: 20048
A23: Оплата работ, услуг | C23: 000 0103 Г11Г015 122 220 | D23: 6063 | E23: - | F23: 6063
A24: Транспортные услуги | C24: 000 0103 Г11Г015 122 222 | D24: 3063 | E24: - | F24: 3063
A25: Прочие работы, услуги | C25: 000 0103 Г11Г015 122 226 | D25: 3000 | E25: - | F25: 3000
A26: Закупка товаров, работ, услуг в сфере информационно-коммуникационных технологий | C26: 000 0103 Г11Г015 242 000 | D26: 2360 | E26: 1600 | F26: 760
A27: Расходы | C27: 000 0103 Г11Г015 242 200 | D27: 2360 | E27: 1600 | F27: 760
A28: Оплата работ, услуг | C28: 000 0103 Г11Г015 242 220 | D28: 2360 | E28: 1600 | F28: 760
A29: Прочие работы, услуги | C29: 000 0103 Г11Г015 242 226 | D29: 2360 | E29: 1600 | F29: 760
A30: Межбюджетные трансферты бюджетам муниципальных районов из бюджетов поселений на исполнение полномочий по осуществлению внешнего муниципального финансового контроля в рамках обеспечения деятельности Совета депутатов | C30: 000 0103 Г11П703 000 000 | D30: 441270 | E30: 220635 | F30: 220635
A31: Иные межбюджетные трансферты | C31: 000 0103 Г11П703 540 000 | D31: 441270 | E31: 220635 | F31: 220635
A32: Расходы | C32: 000 0103 Г11П703 540 200 | D32: 441270 | E32: 220635 | F32: 220635
A33: Безвозмездные перечисления бюджетам | C33: 000 0103 Г11П703 540 250 | D33: 441270 | E33: 220635 | F33: 220635
A34: Перечисления другим бюджетам бюджетной системы Российской Федерации | C34: 000 0103 Г11П703 540 251 | D34: 441270 | E34: 220635 | F34: 220635
A35: Функционирование Правительства Российской Федерации, высших исполнительных органов государственной власти субъектов Российской Федерации, местных администраций | C35: 000 0104 0000000 000 000 | D35: 19211260.41 | E35: 4467717.53 | F35: 14743542.88
A36: Обеспечение деятельности главы администрации | C36: 000 0104 Г120000 000 000 | D36: 506566.42 | E36: 29512.12 | F36: 477054.3
A37: Расходы на выплаты по оплате труда работников органов местного самоуправления в рамках обеспечения деятельности главы администрации | C37: 000 0104 Г12Г014 000 000 | D37: 497966.42 | E37: 29512.12 | F37: 468454.3
A38: Фонд оплаты труда государственных (муниципальных) органов и взносы по обязательному социальному страхованию | C38: 000 0104 Г12Г014 121 000 | D38: 497966.42 | E38: 29512.12 | F38: 468454.3
A39: Расходы | C39: 000 0104 Г12Г014 121 200 | D39: 497966.42 | E39: 29512.12 | F39: 468454.3
A40: Оплата труда и начисления на выплаты по оплате труда | C40: 000 0104 Г12Г014 121 210 | D40: 497966.42 | E40: 29512.12 | F40: 468454.3
A41: Заработная плата | C41: 000 0104 Г12Г014 121 211 | D41: 382462.69 | E41: 22666.76 | F41: 359795.93
A42: Начисления на выплаты по оплате труда | C42: 000 0104 Г12Г014 121 213 | D42: 115503.73 | E42: 6845.36 | F42: 108658.37
A43: Расходы на обеспечение функций органов местного самоуправления в рамках обеспечения деятельности главы администрации | C43: 000 0104 Г12Г015 000 000 | D43: 8600 | E43: - | F43: 8600
A44: Иные выплаты персоналу государственных (муниципальных) органов, за исключением фонда оплаты труда | C44: 000 0104 Г12Г015 122 000 | D44: 8600 | E44: - | F44: 8600
A45: Расходы | C45: 000 0104 Г12Г015 122 200 | D45: 8600 | E45: - | F45: 8600
A46: Оплата труда и начисления на выплаты по оплате труда | C46: 000 0104 Г12Г015 122 210 | D46: 8600 | E46: - | F46: 8600
A47: Прочие выплаты | C47: 000 0104 Г12Г015 122 212 | D47: 8600 | E47: - | F47: 8600
A48: Обеспечение деятельности администрации | C48: 000 0104 Г130000 000 000 | D48: 17437197.99 | E48: 4157200.99 | F48: 13279997
A49: Расходы на выплаты по оплате труда работников органов местного самоуправления в рамках обеспечения деятельности администрации | C49: 000 0104 Г13Г014 000 000 | D49: 16834537.12 | E49: 4052977.71 | F49: 12781559.41
A50: Фонд оплаты труда государственных (муниципальных) органов и взносы по обязательному социальному страхованию | C50: 000 0104 Г13Г014 121 000 | D50: 16834537.12 | E50: 4052977.71 | F50: 12781559.41
A51: Расходы | C51: 000 0104 Г13Г014 121 200 | D51: 16834537.12 | E51: 4052977.71 | F51: 12781559.41
A52: Оплата труда и начисления на выплаты по оплате труда | C52: 000 0104 Г13Г014 121 210 | D52: 16834537.12 | E52: 4052977.71 | F52: 12781559.41
A53: Заработная плата | C53: 000 0104 Г13Г014 121 211 | D53: 12929752 | E53: 3183966 | F53: 9745786
A54: Начисления на выплаты по оплате труда | C54: 000 0104 Г13Г014 121 213 | D54: 3904785.12 | E54: 869011.71 | F54: 3035773.41
A55: Расходы на обеспечение функций органов местного самоуправления в рамках обеспечения деятельности администрации | C55: 000 0104 Г13Г015 000 000 | D55: 602660.87 | E55: 104223.28 | F55: 498437.59
A56: Иные выплаты персоналу государственных (муниципальных) органов, за исключением фонда оплаты труда | C56: 000 0104 Г13Г015 122 000 | D56: 119900 | E56: 22480.7 | F56: 97419.3
A57: Расходы | C57: 000 0104 Г13Г015 122 200 | D57: 119900 | E57: 22480.7 | F57: 97419.3
A58: Оплата труда и начисления на выплаты по оплате труда | C58: 000 0104 Г13Г015 122 210 | D58: 46800 | E58: 8500 | F58: 38300
A59: Прочие выплаты | C59: 000 0104 Г13Г015 122 212 | D59: 46800 | E59: 8500 | F59: 38300
A60: Оплата работ, услуг | C60: 000 0104 Г13Г015 122 220 | D60: 73100 | E60: 13980.7 | F60: 59119.3
A61: Транспортные услуги | C61: 000 0104 Г13Г015 122 222 | D61: 55100 | E61: 12480.7 | F61: 42619.3
A62: Прочие работы, услуги | C62: 000 0104 Г13Г015 122 226 | D62: 18000 | E62: 1500 | F62: 16500
A63: Закупка товаров, работ, услуг в сфере информационно-коммуникационных технологий | C63: 000 0104 Г13Г015 242 000 | D63: 210730 | E63: 50540.11 | F63: 160189.89
A64: Расходы | C64: 000 0104 Г13Г015 242 200 | D64: 210730 | E64: 50540.11 | F64: 160189.89
A65: Оплата работ, услуг | C65: 000 0104 Г13Г015 242 220 | D65: 210730 | E65: 50540.11 | F65: 160189.89
A66: Услуги связи | C66: 000 0104 Г13Г015 242 221 | D66: 73347 | E66: 16850 | F66: 56497
A67: Прочие работы, услуги | C67: 000 0104 Г13Г015 242 226 | D67: 137383 | E67: 33690.11 | F67: 103692.89
A68: Прочая закупка товаров, работ и услуг для обеспечения государственных (муниципальных) нужд | C68: 000 0104 Г13Г015 244 000 | D68: 266546.87 | E68: 29752.46 | F68: 236794.41
A69: Расходы | C69: 000 0104 Г13Г015 244 200 | D69: 266546.87 | E69: 29752.46 | F69: 236794.41
A70: Оплата работ, услуг | C70: 000 0104 Г13Г015 244 220 | D70: 266546.87 | E70: 29752.46 | F70: 236794.41
A71: Работы, услуги по содержанию имущества | C71: 000 0104 Г13Г015 244 225 | D71: 23661 | E71: 4852.68 | F71: 18808.32
A72: Прочие работы, услуги | C72: 000 0104 Г13Г015 244 226 | D72: 242885.87 | E72: 24899.78 | F72: 217986.09
A73: Уплата прочих налогов, сборов и иных платежей | C73: 000 0104 Г13Г015 852 000 | D73: 5484 | E73: 1450.01 | F73: 4033.99
A74: Расходы | C74: 000 0104 Г13Г015 852 200 | D74: 5484 | E74: 1450.01 | F74: 4033.99
A75: Прочие расходы | C75: 000 0104 Г13Г015 852 290 | D75: 5484 | E75: 1450.01 | F75: 4033.99
A76: Непрограммные расходы органов местного самоуправления по вопросам жилищно-коммунального хозяйства | C76: 000 0104 Г250000 000 000 | D76: 145905 | E76: 43773 | F76: 102132
A77: Межбюджетные трансферты бюджетам муниципальных районов из бюджетов поселений на исполнение полномочий по осуществлению внешнего муниципального жилищного контроля в рамках непрограммных расходов органов местного самоуправления по вопросам жилищно-коммунального хозяйства | C77: 000 0104 Г25П704 000 000 | D77: 145905 | E77: 43773 | F77: 102132
A78: Иные межбюджетные трансферты | C78: 000 0104 Г25П704 540 000 | D78: 145905 | E78: 43773 | F78: 102132
A79: Расходы | C79: 000 0104 Г25П704 540 200 | D79: 145905 | E79: 43773 | F79: =IF(OR(D79="-",E79=D79),"-",D79-IF(E79="-",0,E79)) -> 102132
A80: Безвозмездные перечисления бюджетам | C80: 000 0104 Г25П704 540 250 | D80: 145905 | E80: 43773 | F80: 102132
A81: Перечисления другим бюджетам бюджетной системы Российской Федерации | C81: 000 0104 Г25П704 540 251 | D81: 145905 | E81: 43773 | F81: 102132
A82: Подпрограмма "Обеспечение правопорядка и профилактика правонарушений" муниципальной программы "Безопасность в МО "Город Пикалево" | C82: 000 0104 П420000 000 000 | D82: 1121591 | E82: 237231.42 | F82: 884359.58
A83: Профилактика безнадзорности и правонарушений несовершеннолетних за счет средств субвенции областного бюджета в рамках подпрограммы "Обеспечение правопорядка и профилактика правонарушений" государственной программы Ленинградской области "Безопасность Ленинградской области" в рамках подпрограммы "Обеспечение правопорядка и профилактика правонарушений" муниципальной программы "Безопасность в МО "Город Пикалево" | C83: 000 0104 П427133 000 000 | D83: 554293 | E83: 125575.21 | F83: 428717.79
A84: Фонд оплаты труда государственных (муниципальных) органов и взносы по обязательному социальному страхованию | C84: 000 0104 П427133 121 000 | D84: 529097.65 | E84: 117484.28 | F84: 411613.37
A85: Расходы | C85: 000 0104 П427133 121 200 | D85: 529097.65 | E85: 117484.28 | F85: 411613.37
A86: Оплата труда и начисления на выплаты по оплате труда | C86: 000 0104 П427133 121 210 | D86: 529097.65 | E86: 117484.28 | F86: 411613.37
A87: Заработная плата | C87: 000 0104 П427133 121 211 | D87: 406373 | E87: 92089.3 | F87: 314283.7
A88: Начисления на выплаты по оплате труда | C88: 000 0104 П427133 121 213 | D88: 122724.65 | E88: 25394.98 | F88: 97329.67
A89: Иные выплаты персоналу государственных (муниципальных) органов, за исключением фонда оплаты труда | C89: 000 0104 П427133 122 000 | D89: 2000 | E89: 200 | F89: 1800
A90: Расходы | C90: 000 0104 П427133 122 200 | D90: 2000 | E90: 200 | F90: 1800
A91: Оплата труда и начисления на выплаты по оплате труда | C91: 000 0104 П427133 122 210 | D91: 1200 | E91: 200 | F91: 1000
A92: Прочие выплаты | C92: 000 0104 П427133 122 212 | D92: 1200 | E92: 200 | F92: 1000
A93: Оплата работ, услуг | C93: 000 0104 П427133 122 220 | D93: 800 | E93: - | F93: 800
A94: Транспортные услуги | C94: 000 0104 П427133 122 222 | D94: 800 | E94: - | F94: 800
A95: Закупка товаров, работ, услуг в сфере информационно-коммуникационных технологий | C95: 000 0104 П427133 242 000 | D95: 14058.36 | E95: 3357.12 | F95: 10701.24
A96: Расходы | C96: 000 0104 П427133 242 200 | D96: 11658.36 | E96: 3357.12 | F96: 8301.24
A97: Оплата работ, услуг | C97: 000 0104 П427133 242 220 | D97: 11658.36 | E97: 3357.12 | F97: 8301.24
A98: Услуги связи | C98: 000 0104 П427133 242 221 | D98: 11658.36 | E98: 3357.12 | F98: 8301.24
A99: Поступление нефинансовых активов | C99: 000 0104 П427133 242 300 | D99: 2400 | E99: - | F99: 2400
A100: Увеличение стоимости материальных запасов | C100: 000 0104 П427133 242 340 | D100: 2400 | E100: - | F100: 2400
A101: Прочая закупка товаров, работ и услуг для обеспечения государственных (муниципальных) нужд | C101: 000 0104 П427133 244 000 | D101: 9136.99 | E101: 4533.81 | F101: 4603.18
A102: Расходы | C102: 000 0104 П427133 244 200 | D102: 5760 | E102: 4533.81 | F102: 1226.19
A103: Оплата работ, услуг | C103: 000 0104 П427133 244 220 | D103: 5760 | E103: 4533.81 | F103: 1226.19
A104: Услуги связи | C104: 000 0104 П427133 244 221 | D104: 5760 | E104: 4533.81 | F104: 1226.19
A105: Поступление нефинансовых активов | C105: 000 0104 П427133 244 300 | D105: 3376.99 | E105: - | F105: 3376.99
A106: Увеличение стоимости основных средств | C106: 000 0104 П427133 244 310 | D106: 3376.99 | E106: - | F106: 3376.99
A107: Мероприятия в сфере административных правоотношений за счет средств субвенции областного бюджета в рамках подпрограммы "Обеспечение правопорядка и профилактика правонарушений" государственной программы Ленинградской области "Безопасность Ленинградской области" в рамках подпрограммы "Обеспечение правопорядка и профилактика правонарушений" муниципальной программы "Безопасность в МО "Город Пикалево" | C107: 000 0104 П427134 000 000 | D107: 567298 | E107: 111656.21 | F107: 455641.79
A108: Фонд оплаты труда государственных (муниципальных) органов и взносы по обязательному социальному страхованию | C108: 000 0104 П427134 121 000 | D108: 529097.64 | E108: 102377.11 | F108: 426720.53
A109: Расходы | C109: 000 0104 П427134 121 200 | D109: 529097.64 | E109: 102377.11 | F109: 426720.53
A110: Оплата труда и начисления на выплаты по оплате труда | C110: 000 0104 П427134 121 210 | D110: 529097.64 | E110: 102377.11 | F110: 426720.53
A111: Заработная плата | C111: 000 0104 П427134 121 211 | D111: 406373 | E111: 79501.76 | F111: 326871.24
A112: Начисления на выплаты по оплате труда | C112: 000 0104 П427134 121 213 | D112: 122724.64 | E112: 22875.35 | F112: 99849.29
A113: Закупка товаров, работ, услуг в сфере информационно-коммуникационных технологий | C113: 000 0104 П427134 242 000 | D113: 10000 | E113: - | F113: 10000
A114: Поступление нефинансовых активов | C114: 000 0104 П427134 242 300 | D114: 10000 | E114: - | F114: 10000
A115: Увеличение стоимости материальных запасов | C115: 000 0104 П427134 242 340 | D115: 10000 | E115: - | F115: 10000
A116: Прочая закупка товаров, работ и услуг для обеспечения государственных (муниципальных) нужд | C116: 000 0104 П427134 244 000 | D116: 28200.36 | E116: 9279.1 | F116: 18921.26
A117: Расходы | C117: 000 0104 П427134 244 200 | D117: 16500 | E117: 9279.1 | F117: 7220.9
A118: Оплата работ, услуг | C118: 000 0104 П427134 244 220 | D118: 16500 | E118: 9279.1 | F118: 7220.9
A119: Услуги связи | C119: 000 0104 П427134 244 221 | D119: 16500 | E119: 9279.1 | F119: 7220.9
A120: Поступление нефинансовых активов | C120: 000 0104 П427134 244 300 | D120: 11700.36 | E120: - | F120: 11700.36
A121: Увеличение стоимости материальных запасов | C121: 000 0104 П427134 244 340 | D121: 11700.36 | E121: - | F121: 11700.36
A122: Обеспечение проведения выборов и референдумов | C122: 000 0107 0000000 000 000 | D122: 1091720 | E122: - | F122: 1091720
A123: Непрограммные расходы органов местного самоуправления по решению общегосударственных вопросов | C123: 000 0107 Г210000 000 000 | D123: 1091720 | E123: - | F123: 1091720
A124: Проведение выборов в рамках непрограммных расходов органов местного самоуправления по решению общегосударственных вопросов | C124: 000 0107 Г21Г102 000 000 | D124: 1091720 | E124: - | F124: 1091720
A125: Прочая закупка товаров, работ и услуг для обеспечения государственных (муниципальных) нужд | C125: 000 0107 Г21Г102 244 000 | D125: 1091720 | E125: - | F125: 1091720
A126: Расходы | C126: 000 0107 Г21Г102 244 200 | D126: 1091720 | E126: - | F126: 1091720
A127: Прочие расходы | C127: 000 0107 Г21Г102 244 290 | D127: 1091720 | E127: - | F127: 1091720
A128: Резервные фонды | C128: 000 0111 0000000 000 000 | D128: 487492.61 | E128: - | F128: 487492.61
A129: Непрограммные расходы органов местного самоуправления по решению общегосударственных вопросов | C129: 000 0111 Г210000 000 000 | D129: 452492.61 | E129: - | F129: 452492.61
A130: Резервный фонд администрации в рамках непрограммных расходов органов местного самоуправления по решению общегосударственных вопросов | C130: 000 0111 Г21Г101 000 000 | D130: 452492.61 | E130: - | F130: 452492.61
A131: Резервные средства | C131: 000 0111 Г21Г101 870 000 | D131: 452492.61 | E131: - | F131: 452492.61
A132: Расходы | C132: 000 0111 Г21Г101 870 200 | D132: 452492.61 | E132: - | F132: 452492.61
A133: Прочие расходы | C133: 000 0111 Г21Г101 870 290 | D133: 452492.61 | E133: - | F133: 452492.61
A134: Подпрограмма "Предупреждение чрезвычайных ситуаций, защита населения и территорий от чрезвычайных ситуаций природного и техногенного характера, развитие гражданской обороны, обеспечение пожарной безопасности и безопасности на водных объектах" муниципальной программы "Безопасность в МО "Город Пикалево" | C134: 000 0111 П410000 000 000 | D134: 35000 | E134: - | F134: 35000
A135: Резервный фонд администрации по ликвидации чрезвычайных ситуаций природного и техногенного характера и стихийных бедствий в рамках подпрограммы "Предупреждение чрезвычайных ситуаций, защита населения и территорий от чрезвычайных ситуаций природного и техногенного характера, развитие гражданской обороны, обеспечение пожарной безопасности и безопасности на водных объектах" муниципальной программы "Безопасность в МО "Город Пикалево" | C135: 000 0111 П41П104 000 000 | D135: 35000 | E135: - | F135: 35000
A136: Резервные средства | C136: 000 0111 П41П104 870 000 | D136: 35000 | E136: - | F136: 35000
A137: Расходы | C137: 000 0111 П41П104 870 200 | D137: 35000 | E137: - | F137: 35000
A138: Прочие расходы | C138: 000 0111 П41П104 870 290 | D138: 35000 | E138: - | F138: 35000
A139: Другие общегосударственные вопросы | C139: 000 0113 0000000 000 000 | D139: 8856421 | E139: 2424357.5 | F139: 6432063.5
A140: Непрограммные расходы органов местного самоуправления по решению общегосударственных вопросов | C140: 000 0113 Г210000 000 000 | D140: 8554373 | E140: 2358978.84 | F140: 6195394.16
A141: Обеспечение деятельности муниципальных казенных учреждений в рамках непрограммных расходов органов местного самоуправления по решению общегосударственных вопросов | C141: 000 0113 Г21Г016 000 000 | D141: 6865664 | E141: 1890531.53 | F141: 4975132.47
A142: Фонд оплаты труда казенных учреждений и взносы по обязательному социальному страхованию | C142: 000 0113 Г21Г016 111 000 | D142: 3103515 | E142: 782616.3 | F142: 2320898.7
A143: Расходы | C143: 000 0113 Г21Г016 111 200 | D143: 3103515 | E143: 782616.3 | F143: =IF(OR(D143="-",E143=D143),"-",D143-IF(E143="-",0,E143)) -> 2320898.7
A144: Оплата труда и начисления на выплаты по оплате труда | C144: 000 0113 Г21Г016 111 210 | D144: 3103515 | E144: 782616.3 | F144: 2320898.7
A145: Заработная плата | C145: 000 0113 Г21Г016 111 211 | D145: 2383652 | E145: 588704.52 | F145: 1794947.48
A146: Начисления на выплаты по оплате труда | C146: 000 0113 Г21Г016 111 213 | D146: 719863 | E146: 193911.78 | F146: 525951.22
A147: Иные выплаты персоналу казенных учреждений, за исключением фонда оплаты труда | C147: 000 0113 Г21Г016 112 000 | D147: 23800 | E147: 9700 | F147: 14100
A148: Расходы | C148: 000 0113 Г21Г016 112 200 | D148: 23800 | E148: 9700 | F148: 14100
A149: Оплата труда и начисления на выплаты по оплате труда | C149: 000 0113 Г21Г016 112 210 | D149: 22000 | E149: 7900 | F149: 14100
A150: Прочие выплаты | C150: 000 0113 Г21Г016 112 212 | D150: 22000 | E150: 7900 | F150: 14100
A151: Оплата работ, услуг | C151: 000 0113 Г21Г016 112 220 | D151: 1800 | E151: 1800 | F151: -
A152: Прочие работы, услуги | C152: 000 0113 Г21Г016 112 226 | D152: 1800 | E152: 1800 | F152: -
A153: Закупка товаров, работ, услуг в сфере информационно-коммуникационных технологий | C153: 000 0113 Г21Г016 242 000 | D153: 912081 | E153: 225067.53 | F153: 687013.47
A154: Расходы | C154: 000 0113 Г21Г016 242 200 | D154: 652841 | E154: 181362.53 | F154: 471478.47
A155: Оплата работ, услуг | C155: 000 0113 Г21Г016 242 220 | D155: 652841 | E155: 181362.53 | F155: 471478.47
A156: Услуги связи | C156: 000 0113 Г21Г016 242 221 | D156: 393744 | E156: 116212.53 | F156: 277531.47
A157: Работы, услуги по содержанию имущества | C157: 000 0113 Г21Г016 242 225 | D157: 25760 | E157: - | F157: 25760
A158: Прочие работы, услуги | C158: 000 0113 Г21Г016 242 226 | D158: 233337 | E158: 65150 | F158: 168187
A159: Поступление нефинансовых активов | C159: 000 0113 Г21Г016 242 300 | D159: 259240 | E159: 43705 | F159: 215535
A160: Увеличение стоимости основных средств | C160: 000 0113 Г21Г016 242 310 | D160: 72340 | E160: - | F160: 72340
A161: Увеличение стоимости материальных запасов | C161: 000 0113 Г21Г016 242 340 | D161: 186900 | E161: 43705 | F161: 143195
A162: Прочая закупка товаров, работ и услуг для обеспечения государственных (муниципальных) нужд | C162: 000 0113 Г21Г016 244 000 | D162: 2821796 | E162: 869948.34 | F162: 1951847.66
A163: Расходы | C163: 000 0113 Г21Г016 244 200 | D163: 2036829 | E163: 664739.88 | F163: 1372089.12
A164: Оплата работ, услуг | C164: 000 0113 Г21Г016 244 220 | D164: 1985079 | E164: 663810.13 | F164: 1321268.87
A165: Услуги связи | C165: 000 0113 Г21Г016 244 221 | D165: 36270 | E165: 18039.39 | F165: 18230.61
A166: Коммунальные услуги | C166: 000 0113 Г21Г016 244 223 | D166: 766210 | E166: 341402.04 | F166: 424807.96
A167: Арендная плата за пользование имуществом | C167: 000 0113 Г21Г016 244 224 | D167: 63600 | E167: 63600 | F167: -
A168: Работы, услуги по содержанию имущества | C168: 000 0113 Г21Г016 244 225 | D168: 699124 | E168: 147568.7 | F168: 551555.3
A169: Прочие работы, услуги | C169: 000 0113 Г21Г016 244 226 | D169: 419875 | E169: 93200 | F169: 326675
A170: Прочие расходы | C170: 000 0113 Г21Г016 244 290 | D170: 51750 | E170: 929.75 | F170: 50820.25
A171: Поступление нефинансовых активов | C171: 000 0113 Г21Г016 244 300 | D171: 784967 | E171: 205208.46 | F171: 579758.54
A172: Увеличение стоимости основных средств | C172: 000 0113 Г21Г016 244 310 | D172: 32400 | E172: 1894 | F172: 30506
A173: Увеличение стоимости материальных запасов | C173: 000 0113 Г21Г016 244 340 | D173: 752567 | E173: 203314.46 | F173: 549252.54
A174: Уплата прочих налогов, сборов и иных платежей | C174: 000 0113 Г21Г016 852 000 | D174: 4472 | E174: 3199.36 | F174: 1272.64
A175: Расходы | C175: 000 0113 Г21Г016 852 200 | D175: 4472 | E175: 3199.36 | F175: 1272.64
A176: Прочие расходы | C176: 000 0113 Г21Г016 852 290 | D176: 4472 | E176: 3199.36 | F176: 1272.64
A177: Обеспечение управления активами и приватизации муниципального имущества в рамках непрограммных расходов органов местного самоуправления по решению общегосударственных вопросов | C177: 000 0113 Г21Г103 000 000 | D177: 630000 | E177: 114248.93 | F177: 515751.07
A178: Прочая закупка товаров, работ и услуг для обеспечения государственных (муниципальных) нужд | C178: 000 0113 Г21Г103 244 000 | D178: 630000 | E178: 114248.93 | F178: 515751.07
A179: Расходы | C179: 000 0113 Г21Г103 244 200 | D179: 630000 | E179: 114248.93 | F179: 515751.07
A180: Оплата работ, услуг | C180: 000 0113 Г21Г103 244 220 | D180: 630000 | E180: 114248.93 | F180: 515751.07
A181: Прочие работы, услуги | C181: 000 0113 Г21Г103 244 226 | D181: 630000 | E181: 114248.93 | F181: 515751.07
A182: Содержание и обслуживание объектов муниципального имущества в рамках непрограммных расходов органов местного самоуправления по решению общегосударственных вопросов | C182: 000 0113 Г21Г104 000 000 | D182: 425495 | E182: 258933.27 | F182: 166561.73
A183: Прочая закупка товаров, работ и услуг для обеспечения государственных (муниципальных) нужд | C183: 000 0113 Г21Г104 244 000 | D183: 139295 | E183: 104223.01 | F183: 35071.99
A184: Расходы | C184: 000 0113 Г21Г104 244 200 | D184: 139295 | E184: 104223.01 | F184: 35071.99
A185: Оплата работ, услуг | C185: 000 0113 Г21Г104 244 220 | D185: 139295 | E185: 104223.01 | F185: 35071.99
A186: Работы, услуги по содержанию имущества | C186: 000 0113 Г21Г104 244 225 | D186: 42400 | E186: 9923.01 | F186: 32476.99
A187: Прочие работы, услуги | C187: 000 0113 Г21Г104 244 226 | D187: 96895 | E187: 94300 | F187: 2595
A188: Субсидии юридическим лицам (кроме некоммерческих организаций), индивидуальным предпринимателям, физическим лицам | C188: 000 0113 Г21Г104 810 000 | D188: 286200 | E188: 154710.26 | F188: 131489.74
A189: Расходы | C189: 000 0113 Г21Г104 810 200 | D189: 286200 | E189: 154710.26 | F189: 131489.74
A190: Безвозмездные перечисления организациям | C190: 000 0113 Г21Г104 810 240 | D190: 286200 | E190: 154710.26 | F190: 131489.74
A191: Безвозмездные перечисления организациям, за исключением государственных и муниципальных организаций | C191: 000 0113 Г21Г104 810 242 | D191: 286200 | E191: 154710.26 | F191: 131489.74
A192: Ежегодный членский взнос в Ассоциацию "Совет муниципальных образований Ленинградской области" в рамках непрограммных расходов органов местного самоуправления по решению общегосударственных вопросов | C192: 000 0113 Г21Г105 000 000 | D192: 38964 | E192: - | F192: 38964
A193: Уплата прочих налогов, сборов и иных платежей | C193: 000 0113 Г21Г105 852 000 | D193: 38964 | E193: - | F193: 38964
A194: Расходы | C194: 000 0113 Г21Г105 852 200 | D194: 38964 | E194: - | F194: 38964
A195: Прочие расходы | C195: 000 0113 Г21Г105 852 290 | D195: 38964 | E195: - | F195: 38964
A196: Ежегодный членский взнос в Союз малых городов Российской Федерации в рамках непрограммных расходов органов местного самоуправления по решению общегосударственных вопросов | C196: 000 0113 Г21Г106 000 000 | D196: 21525 | E196: 21000 | F196: 525
A197: Уплата прочих налогов, сборов и иных платежей | C197: 000 0113 Г21Г106 852 000 | D197: 21525 | E197: 21000 | F197: 525
A198: Расходы | C198: 000 0113 Г21Г106 852 200 | D198: 21525 | E198: 21000 | F198: 525
A199: Прочие расходы | C199: 000 0113 Г21Г106 852 290 | D199: 21525 | E199: 21000 | F199: 525
A200: Обеспечение органов местного самоуправления статистической информацией в рамках непрограммных расходов органов местного самоуправления по решению общегосударственных вопросов | C200: 000 0113 Г21Г107 000 000 | D200: 81780 | E200: 34080 | F200: 47700
A201: Прочая закупка товаров, работ и услуг для обеспечения государственных (муниципальных) нужд | C201: 000 0113 Г21Г107 244 000 | D201: 81780 | E201: 34080 | F201: 47700
A202: Расходы | C202: 000 0113 Г21Г107 244 200 | D202: 81780 | E202: 34080 | F202: 47700
A203: Оплата работ, услуг | C203: 000 0113 Г21Г107 244 220 | D203: 81780 | E203: 34080 | F203: 47700
A204: Прочие работы, услуги | C204: 000 0113 Г21Г107 244 226 | D204: 81780 | E204: 34080 | F204: 47700
A205: Мероприятия по диспансеризации лиц, замещающих муниципальные должности и должности муниципальных служащих в рамках непрограммных расходов органов местного самоуправления по решению общегосударственных вопросов | C205: 000 0113 Г21Г108 000 000 | D205: 50945 | E205: - | F205: 50945
A206: Прочая закупка товаров, работ и услуг для обеспечения государственных (муниципальных) нужд | C206: 000 0113 Г21Г108 244 000 | D206: 50945 | E206: - | F206: 50945
A207: Расходы | C207: 000 0113 Г21Г108 244 200 | D207: 50945 | E207: - | F207: =IF(OR(D207="-",E207=D207),"-",D207-IF(E207="-",0,E207)) -> 50945
A208: Оплата работ, услуг | C208: 000 0113 Г21Г108 244 220 | D208: 50945 | E208: - | F208: 50945
A209: Прочие работы, услуги | C209: 000 0113 Г21Г108 244 226 | D209: 50945 | E209: - | F209: 50945
... 334 more rows

Sheet ExportParams (hidden)
A1: EXPORT_SRC_KIND | B1: 5
A2: EXPORT_PARAM_SRC_KIND | B2: 3
A3: EXPORT_SRC_CODE | B3: 001
A4: EXPORT_VB_CODE | B4: 3

Sheet Источники
A1: Форма 0503117 с.3
A2: 3. Источники финансирования дефицита бюджета
A4: Наименование показателя | B4: Код строки | C4: Код источника финансирования дефицита бюджета по бюджетной классификации | D4: Утвержденные бюджетные назначения | E4: Исполнено | F4: Неисполненные назначения
A11: 1 | B11: 2 | C11: 3 | D11: 4 | E11: 5 | F11: 6
A12: Источники финансирования дефицита бюджета - всего | B12: 500 | C12: *** 90000000000000 000 | D12: 137112345 | E12: 356183708.2 | F12: -219071363.2
A13: в том числе:
A14: источники внутреннего финансирования бюджета | B14: 520 | C14: *** 01000000000000 000 | D14: 7068356.84 | E14: 595578.21 | F14: 6472778.63
A15: из них:
A16: Кредиты кредитных организаций в валюте Российской Федерации | C16: 000 01020000000000 000 | D16: 8467064.63 | E16: - | F16: 8467064.63
A17: Получение кредитов от кредитных организаций в валюте Российской Федерации | C17: 000 01020000000000 700 | D17: 9000000 | E17: - | F17: 9000000
A18: Получение кредитов от кредитных организаций бюджетами поселений в валюте Российской Федерации | C18: 000 01020000100000 710 | D18: 9000000 | E18: - | F18: 9000000
A19: Погашение кредитов, предоставленных кредитными организациями в валюте Российской Федерации | C19: 000 01020000000000 800 | D19: -532935.37 | E19: - | F19: -532935.37
A20: Погашение бюджетами поселений кредитов от кредитных организаций в валюте Российской Федерации | C20: 000 01020000100000 810 | D20: -532935.37 | E20: - | F20: -532935.37
A21: Бюджетные кредиты от других бюджетов бюджетной системы Российской Федерации | C21: 000 01030000000000 000 | D21: -3534286 | F21: -3534286
A22: Бюджетные кредиты от других бюджетов бюджетной системы Российской Федерации в валюте Российской Федерации | C22: 000 01030100000000 000 | D22: -3534286 | F22: -3534286
A23: Погашение бюджетых кредитов, полученных от других бюджетов бюджетной системы Российской Федерации в валюте Российской Федерации | C23: 000 01030100000000 800 | D23: -3534286 | F23: -3534286
A24: Погашение бюджетами поселений кредитов от других бюджетов бюджетной системы Российской Федерации в валюте Российской Федерации | C24: 000 01030100100000 810 | D24: -3534286 | E24: - | F24: -3534286
A25: Иные источники внутреннего финансирования дефицита бюджета | C25: 000 01060000000000 000 | D25: 2135578.21 | E25: 595578.21 | F25: 1540000
A26: Акции и иные формы участия в капитале, находящихся в государственной и муниципальной собственности | C26: 000 01060100000000 000 | D26: 55578.21 | E26: 55578.21 | F26: -
A27: Средства от продажи акций и иных форм участия в капитале, находящихся в государственной и муниципальной собственности | C27: 000 01060100000000 630 | D27: 55578.21 | E27: 55578.21 | F27: -
A28: Средства от продажи акций и иных форм участия в капитале, находящихся в собственности поселений | C28: 000 01060100100000 630 | D28: 55578.21 | E28: 55578.21 | F28: -
A29: Исполнение государственных и муниципальных гарантий | C29: 000 01060400000000 000 | D29: -7188311.4 | E29: - | F29: -7188311.4
A30: Исполнение государственных и муниципальных гарантий в валюте Российской Федерации | C30: 000 01060401000000 000 | D30: -7188311.4 | E30: - | F30: -7188311.4
A31: Исполнение государственных и муниципальных гарантий в валюте Российской Федерации в случае, если исполнение гарантом муниципальных гарантий ведет к возникновению права регрессного требования гаранта к принципалу либо обусловлено уступкой гаранту прав требования бенефициара к принципалу | C31: 000 01060401000000 800 | D31: -7188311.4 | E31: - | F31: -7188311.4
A32: Исполнение муниципальных гарантий поселений в валюте Российской Федерации в случае, если исполнение гарантом муниципальных гарантий ведет к возникновению права регрессного требования гаранта к принципалу либо обусловлено уступкой гаранту прав требования бенефициара к принципалу | C32: 000 01060401100000 810 | D32: -7188311.4 | E32: - | F32: -7188311.4
A33: Прочие бюджетные кредиты (ссуды), предоставленные внутри страны | C33: 000 01060800000000 000 | D33: 9268311.4 | E33: 540000 | F33: 8728311.4
A34: Возврат прочих бюджетных кредитов (ссуд), предоставленные внутри страны | C34: 000 01060800000000 600 | D34: 9268311.4 | E34: 540000 | F34: 8728311.4
A35: Возврат прочих бюджетных кредитов (ссуд), предоставленных бюджетами поселений внутри страны | C35: 000 01060800100000 640 | D35: 9268311.4 | E35: 540000 | F35: 8728311.4
A36: Изменение остатков средств | B36: 700 | C36: *** 01000000000000 000 | D36: 130043988.2 | E36: 355588130 | F36: -225544141.8
A37: Изменение остатков средств на счетах по учету средств бюджета | B37: 700 | C37: *** 01050000000000 000 | D37: 130043988.2 | E37: 355588130 | F37: -225544141.8
A38: увеличение остатков средств бюджетов | B38: 710 | C38: 000 01050000000000 500 | D38: -140053990.7 | E38: -103094538.8 | F38: x
A39: увеличение прочих остатков средств бюджетов | C39: 000 01050200000000 500 | D39: -140053990.7 | E39: -103094538.8 | F39: x
A40: увеличение прочих остатков денежных средств бюджетов | C40: 000 01050201000000 510 | D40: -140053990.7 | E40: -103094538.8 | F40: x
A41: Увеличение прочих остатков денежных средств бюджетов поселений | C41: 000 01050201100000 510 | D41: -140053990.7 | E41: -103094538.8 | F41: x
A42: уменьшение остатков средств бюджетов | B42: 720 | C42: 000 01050000000000 600 | D42: 270097978.9 | E42: 458682668.7 | F42: x
A43: уменьшение прочих остатков средств бюджетов | C43: 000 01050200000000 600 | D43: 270097978.9 | E43: 458682668.7 | F43: x
A44: уменьшение прочих остатков денежных средств бюджетов | C44: 000 01050201000000 610 | D44: 270097978.9 | E44: 458682668.7 | F44: x
A45: Уменьшение прочих остатков денежных средств бюджетов поселений | C45: 000 01050201100000 610 | D45: 270097978.9 | E45: 458682668.7 | F45: x
A48: Заместитель главы администрации | D48: Д.В. Николаев
D50: И.Ю. Жолудева
A51: Заведующий отделом финансов
A53: 05 мая 2014 года
